[Event "3rd Rio Open-Rapid 2024"]
[Site "Rio de Janeiro"]
[Date "2024.04.24"]
[Round "1.1"]
[White "Goetten Wagner, Julia"]
[Black "Fier, Alexandr"]
[Result "0-1"]
[ECO "B43"]
[WhiteElo "1783"]
[BlackElo "2566"]
[Annotator "TA"]
[PlyCount "43"]
[EventDate "2024.04.12"]
[EventType "swiss"]
[EventCountry "BRA"]
[SourceTitle "playchess.com"]
[Source "ChessBase"]
[SourceQuality "1"]
[TimeControl "600+5"]

{[%evp 13,43,0,0,0,31,-10,29,-5,19,63,53,-32,20,-166,-165,-154,-170,-158,-170,-169,-179,-176,-179,-187,-196,-205,-210,-200,-106,-172,-165,-143]} 1. e4 {[%emt 0:00:02]} c5 {[%emt 0:00:02]} 2. Nf3 {[%emt 0:00:01]} e6 {[%emt 0:00:02]} 3. d4 {[%emt 0:00:02]} cxd4 {[%emt 0:00:01]} 4. Nxd4 {[%emt 0:00:01]} a6 {[%emt 0:00:01]} 5. Nc3 {[%emt 0:00:02]} b5 {[%emt 0:00:01]} 6. Be3 {[%emt 0:00:07]} Bb7 {[%emt 0:00:02]} 7. f3 {[%emt 0:00:06]} Qc7 {[%emt 0:00:02]} 8. Qd2 {[%emt 0:00:03]} Nc6 {[%emt 0:00:13]} 9. g4 {[%emt 0:00:14][%cal Bg2g4,Bg4g5][%mdl 32]} Ne5 {[%emt 0:00:12]} 10. O-O-O {[%emt 0:00:54] White has an edge.} Nf6 {[%emt 0:00:16]} (10... Bb4 {looks sharper.} 11. Bf4 h5 12. Nf5 exf5 13. Bxe5 Qxe5 14. Qxd7+ Kf8) 11. g5 {[%emt 0:00:25]} Nh5 {[%emt 0:00:02]} 12. Bd3 {[%emt 0:00:37]} (12. Kb1 $14) 12... Rc8 {[%emt 0:00:06]} (12... Bb4 $15) 13. f4 $2 {[%emt 0:04:41] [#]} (13. Kb1 $11 {and White stays safe.}) 13... Nxd3+ $19 {[%emt 0:00:02]} 14. Qxd3 {[%emt 0:00:03]} (14. cxd3 $2 b4 15. Rhf1 bxc3 $19) 14... Nxf4 {[%emt 0:00:02]} 15. Bxf4 {[%emt 0:00:26]} Qxf4+ {[%emt 0:00:01]} 16. Kb1 {[%emt 0:00:11][%cal Od4e6] [#] And now Nxe6! would win.} Qc7 {[%emt 0:00:06]} (16... Qxg5 17. Nxe6 Qe7 18. Nf4 $16) 17. Rhe1 {[%emt 0:00:33]} Bb4 {[%emt 0:00:06][%cal Rb4c3]} (17... Qxh2 $2 {perishes.} 18. Nxe6 (18. Ndxb5 Rd8 $15) 18... Bc6 19. Nd4 $18 (19. Nxf8 Kxf8 20. Ne2 h5 $14)) 18. Re3 {[%emt 0:02:37]} Bxc3 {[%emt 0:00:04]} (18... Qxh2 $2 19. Nxe6 d6 (19... dxe6 $2 20. Qd7+ Kf8 21. Rf3 $18) 20. Nxg7+ Kd7 21. e5 $18) 19. bxc3 {[%emt 0:00:01][%cal Od4f5]} O-O {[%emt 0:00:05][%cal Oc7f4]} (19... Qxh2 20. Nxe6 d5 (20... dxe6 21. Qd7+ Kf8 22. Rf3 Qh5 23. Rdf1 f6 24. gxf6 Qf7 25. fxg7+ Kxg7 26. Rg3+ Kh6 27. Rh1+) 21. Nxg7+ Kd8 22. exd5 $18) 20. h4 {[%emt 0:00:05]} Qc5 {[%emt 0:01:18]} ({Better is} 20... Qf4 $19 21. Qe2 Rc4 (21... Qxh4 $2 22. Nf3 $19)) 21. Nf3 {[%emt 0:00:19]} (21. Nb3 $17 {keeps fighting.} Qc7 22. Qd6) 21... b4 {[%emt 0:00:06]} 22. cxb4 {[%emt 0:00:25] Weighted Error Value: White=0.45/Black=0.20 (precise) .  Loses game:     	White=1     	---        Mistake:       	White=2     	Black=2      Inaccurate:     	White=2     	Black=2      OK:         	White=2     	Black=2      Best:        	White=1     	Black=2} 0-1

[Event "3rd Rio Open-Rapid 2024"]
[Site "Rio de Janeiro"]
[Date "2024.04.24"]
[Round "1.2"]
[White "Ribeiro, Matheus Mendes Domin"]
[Black "Mattos, Bernardo Cunha"]
[Result "1-0"]
[ECO "E05"]
[WhiteElo "2228"]
[BlackElo "1710"]
[Annotator "TA"]
[PlyCount "52"]
[EventDate "2024.04.12"]
[EventType "swiss"]
[EventCountry "BRA"]
[SourceTitle "playchess.com"]
[Source "ChessBase"]
[SourceQuality "1"]
[TimeControl "600+5"]

{[%evp 15,52,15,25,36,70,43,36,35,35,42,61,42,70,62,93,66,62,76,77,28,114,102,99,88,101,86,181,193,201,192,235,205,170,160,156,161,562,359,355]} 1. c4 {[%emt 0:00:30]} e6 {[%emt 0:00:03]} 2. Nf3 {[%emt 0:00:08]} d5 {[%emt 0:00:09]} 3. g3 {[%emt 0:00:08]} Nf6 {[%emt 0:00:07]} 4. Bg2 {[%emt 0:00:01]} Be7 {[%emt 0:00:04]} 5. O-O {[%emt 0:00:06]} O-O {[%emt 0:00:08]} 6. d4 {[%emt 0:00:02]} dxc4 {[%emt 0:00:13]} 7. Qc2 {[%emt 0:00:02]} a6 {[%emt 0:00:09]} 8. a4 {[%emt 0:00:02][%cal Ba2a4,Ba4a5][%mdl 32]} Nbd7 {[%emt 0:00:36]} 9. Rd1 {[%emt 0:00:57][%cal Of3d2]} Nb6 {[%emt 0:01:00]} 10. Nbd2 {[%emt 0:00:17]} Bd7 {[%emt 0:00:30]} 11. a5 {[%emt 0:01:43] White is slightly better.} Nbd5 {[%emt 0:00:22][%cal Bb6d5,Bd5f6,Bf6d7,Bd7e5][%mdl 32]} 12. Nxc4 {[%emt 0:00:05]} Rc8 {[%emt 0:00:37]} 13. Nfe5 {[%emt 0:00:43]} Bb5 {[%emt 0:01:06]} 14. Qb3 {[%emt 0:00:34]} h6 {[%emt 0:00:52]} 15. Bd2 {[%emt 0:00:14] [#] And now e4 would win.} Nd7 {[%emt 0:00:40]} 16. e4 {[%emt 0:00:31]} N5f6 {[%emt 0:00:44]} 17. Rac1 {[%emt 0:00:16] White has more active pieces.} (17. Na3 $16 Bxa3 18. Nxd7 (18. Rxa3 c5 $11) (18. bxa3 c5 $11) (18. Qxa3 Nxe5 19. dxe5 Nd7 $14) 18... Qxd7 19. Qxa3) 17... c6 {[%emt 0:00:34]} (17... Nxe5 $11 {remains equal.} 18. Nxe5 (18. dxe5 Nd7 $11) 18... Qxd4) 18. Nxd7 {[%emt 0:00:12]} Nxd7 {[%emt 0:00:17]} 19. Be3 $36 {[%emt 0:00:58][%mdl 2048] White is in control.} Bxc4 {[%emt 0:00:31]} 20. Rxc4 {[%emt 0:00:02]} Qc7 {[%emt 0:02:09]} (20... Qxa5 $16 {keeps fighting.} 21. Qxb7 Rc7) 21. d5 $18 {[%emt 0:00:35]} exd5 {[%emt 0:00:02]} 22. exd5 {[%emt 0:00:02]} Ne5 {[%emt 0:00:24]} 23. Bb6 {[%emt 0:00:21] This pair of bishops is nice.} Qb8 {[%emt 0:00:12]} 24. Rcc1 {[%emt 0:00:39] aiming for f4.} cxd5 {[%emt 0:00:17]} 25. Bxd5 {[%emt 0:00:01]} Rfd8 $2 {[%emt 0:00:14] [#]} (25... Nc6 {is a better chance.} 26. Rc3 Bf6) 26. f4 {[%emt 0:00:35]} Rxc1 {[%emt 0:00:15] Weighted Error Value: White=0.27 (precise) /Black=0.57.  Mistake:       	White=1     	Black=3      Inaccurate:     	White=2     	Black=3      OK:         	White=4     	Black=8} 1-0

[Event "3rd Rio Open-Rapid 2024"]
[Site "Rio de Janeiro"]
[Date "2024.04.24"]
[Round "1.4"]
[White "Librelato, Kathie Goulart"]
[Black "Gomes, Genildo de Souza"]
[Result "1-0"]
[ECO "C11"]
[WhiteElo "2165"]
[BlackElo "1723"]
[Annotator "TA"]
[PlyCount "83"]
[EventDate "2024.04.12"]
[EventType "swiss"]
[EventCountry "BRA"]
[SourceTitle "playchess.com"]
[Source "ChessBase"]
[SourceQuality "1"]
[TimeControl "600+5"]

{[%evp 15,83,16,22,26,44,50,55,62,79,72,96,50,138,32,57,54,48,37,93,45,47,40,81,93,94,25,117,114,170,200,190,69,90,95,70,62,87,66,99,86,198,43,33,5,38,0,39,0,38,-36,-41,-126,-103,-646,-639,-324,-605,-585,-279,-1016,-998,-949,-1037,-1016,-997,-811,-795,-717,-345,-255]} 1. e4 {[%emt 0:00:03]} e6 {[%emt 0:00:04]} 2. d4 {[%emt 0:00:02]} d5 {[%emt 0:00:06]} 3. Nc3 {[%emt 0:00:03]} Nf6 {[%emt 0:00:06]} 4. e5 {[%emt 0:00:02]} Nfd7 {[%emt 0:00:04]} 5. Nce2 {[%emt 0:00:03]} c5 {[%emt 0:00:06]} 6. c3 {[%emt 0:00:03]} Nc6 {[%emt 0:00:03]} 7. Nf3 {[%emt 0:00:02]} cxd4 {[%emt 0:00:18]} 8. cxd4 {[%emt 0:00:02]} Bb4+ {[%emt 0:00:11]} 9. Nc3 {[%emt 0:00:26]} Nb6 {[%emt 0:00:17]} 10. Bd3 {[%emt 0:00:12]} Bd7 {[%emt 0:00:08]} 11. O-O {[%emt 0:00:04] White is slightly better.} Bxc3 {[%emt 0:00:37]} 12. bxc3 {[%emt 0:00:02] Threatens to win with Ng5.} Na5 {[%emt 0:00:12]} 13. a4 {[%emt 0:02:15] White is more active.} ({White should play} 13. Ng5 $16) 13... Qc7 {[%emt 0:00:29] [#]} (13... h6 $14) 14. Qc2 {[%emt 0:03:02]} (14. Ng5 $1 $16) 14... Rc8 {[%emt 0:00:18]} 15. Bd2 {[%emt 0:00:48]} (15. Bxh7 Qxc3 16. Ra2 Qb4 $15) 15... Nbc4 {[%emt 0:01:26]} 16. Be1 {[%emt 0:00:06]} (16. Bxh7 Nxd2 17. Nxd2 Qxc3 $17) 16... a6 {[%emt 0:01:10]} (16... Bc6 $14) 17. h3 {[%emt 0:00:25]} ({White should try} 17. Bxh7 $16 Qb6 (17... g6 $2 18. Bxg6 Ke7 19. Bd3 $18) 18. Ng5) 17... h6 {[%emt 0:00:05] Inhibits Ng5.} 18. Nh4 {[%emt 0:00:07]} b5 {[%emt 0:00:17]} 19. axb5 {[%emt 0:00:06]} Bxb5 {[%emt 0:00:03]} 20. Ra2 {[%emt 0:00:43]} (20. Qe2 $16) 20... Qe7 {[%emt 0:00:13]} (20... Rb8 $11) 21. f4 $16 {[%emt 0:00:38]} Ne3 {[%emt 0:00:10]} (21... O-O $16) 22. Bxb5+ $18 {[%emt 0:00:01]} axb5 {[%emt 0:00:05]} 23. Qe2 {[%emt 0:00:02]} (23. Qd3 $18 Nac4 (23... Nxf1 $2 24. Rxa5 O-O 25. Rxb5 $18) 24. Rf3) 23... Nac4 $14 {[%emt 0:00:22]} (23... Nxf1 $2 24. Rxa5 O-O (24... g5 $2 25. fxg5 hxg5 26. Nf3 $18) 25. Qxf1 $18 (25. Kxf1 b4 $18)) 24. Rf3 {[%emt 0:00:08]} Nf5 {[%emt 0:00:32]} (24... g5 25. Bf2 $18) 25. Nxf5 {[%emt 0:00:22]} exf5 {[%emt 0:00:03]} 26. Qd3 {[%emt 0:00:08]} g6 {[%emt 0:00:12]} 27. Qb1 {[%emt 0:00:11]} Qd7 {[%emt 0:00:22]} (27... O-O $16) 28. Qa1 $2 {[%emt 0:00:19] [#]} (28. Qb4 $18) 28... O-O {[%emt 0:00:14]} 29. Bh4 {[%emt 0:00:38]} Qc6 {[%emt 0:00:22]} 30. Ra6 {[%emt 0:00:13]} (30. Be7 $5 Rfe8 $8 31. Bc5 $11) 30... Qb7 {[%emt 0:00:10]} 31. Ra7 {[%emt 0:00:04]} (31. Rf2 {simplifies} Ra8 32. Rxa8 Rxa8 33. Qb1) 31... Qc6 {[%emt 0:00:07]} 32. Bf6 {[%emt 0:00:14]} (32. Be7 $14 Rfe8 33. Rf2) 32... Nd2 $15 {[%emt 0:00:07]} 33. Rg3 {[%emt 0:00:46]} (33. Rd3 $15 Ne4 34. Be7) 33... Ne4 $17 {[%emt 0:00:04][%csl LRc3,LRf6,LRg3]} 34. Rxg6+ {[%emt 0:00:12][%mdl 8192]} fxg6 $19 {[%emt 0:00:07]} 35. Rg7+ {[%emt 0:00:00]} Kh8 {[%emt 0:00:02]} 36. Rc7+ {[%emt 0:00:00]} Qxf6 {[%emt 0:00:14]} ({And not} 36... Nxf6 37. Rxc6 Rxc6 38. exf6 $14) (36... Rxf6 $142 37. Rxc6 Rfxc6) 37. exf6 $2 {[%emt 0:00:00]} (37. Rxc8 Qe7 38. Rxf8+ Qxf8 39. Qa7) 37... Rxc7 {[%emt 0:00:02]} 38. Qa6 {[%emt 0:00:10]} Nxf6 {[%emt 0:00:27]} 39. Qxb5 {[%emt 0:00:03]} Rxc3 {[%emt 0:00:05]} 40. Qb4 {[%emt 0:00:10]} Rfc8 {[%emt 0:00:12]} 41. Qe7 {[%emt 0:00:35]} Ne4 {[%emt 0:00:10]} (41... Rc1+ $142 42. Kh2 R1c6) 42. Qe5+ {[%emt 0:00:00][%mdl 32768] Quite a comeback for Black.   Weighted Error Value: White=0.64/Black=0.53.  Loses game:     	White=1     	---        Mistake:       	White=8     	Black=6      Inaccurate:     	White=3     	Black=5      OK:         	White=8     	Black=6      Best:        	White=1     	Black=2     . Loss on time!?} 1-0

[Event "3rd Rio Open-Rapid 2024"]
[Site "Rio de Janeiro"]
[Date "2024.04.24"]
[Round "2.1"]
[White "Fier, Alexandr"]
[Black "Deus Filho, Joaquim de"]
[Result "1-0"]
[ECO "C30"]
[WhiteElo "2566"]
[BlackElo "1884"]
[Annotator "TA"]
[PlyCount "51"]
[EventDate "2024.04.12"]
[EventType "swiss"]
[EventCountry "BRA"]
[SourceTitle "playchess.com"]
[Source "ChessBase"]
[SourceQuality "1"]
[TimeControl "600+5"]

{[%evp 9,51,251,255,240,365,368,353,311,311,300,297,266,262,250,318,317,393,335,415,202,199,185,191,206,158,74,70,13,8,14,10,14,12,16,3,0,3,0,0,0,333,339,763,320]} 1. e4 {[%emt 0:00:01]} e5 {[%emt 0:00:03]} 2. f4 {[%emt 0:00:01]} Bc5 {[%emt 0:00:17]} 3. Nf3 {[%emt 0:00:02]} Nc6 {[%emt 0:00:06]} 4. Nc3 {[%emt 0:00:09]} Nf6 {[%emt 0:00:08]} 5. fxe5 {[%emt 0:00:06]} Ng4 {[%emt 0:00:07][%cal Og4f2] [#] Threatens to win with ...Nf2!} 6. d4 {[%emt 0:00:03]} Bb4 {[%emt 0:00:06]} (6... Be7 $142 7. Nd5 d6 8. Nxe7 Qxe7) 7. h3 $18 {[%emt 0:00:03]} Nh6 {[%emt 0:00:09]} 8. Bg5 {[%emt 0:00:02] White is winning.} Be7 {[%emt 0:00:08]} 9. Bxh6 {[%emt 0:00:02]} gxh6 {[%emt 0:00:02]} 10. Bc4 {[%emt 0:00:01]} Bh4+ {[%emt 0:00:05]} 11. Ke2 {[%emt 0:00:01]} Rg8 {[%emt 0:00:35]} 12. g4 {[%emt 0:00:04]} h5 {[%emt 0:00:07]} 13. Rf1 {[%emt 0:00:03] Strongly threatening Nxh4.} (13. gxh5 Rg2+ 14. Kf1 Rf2+ 15. Kg1 d5 $18) 13... Rg7 {[%emt 0:00:19]} 14. Nd5 {[%emt 0:00:19]} (14. gxh5 $2 Rg2+ $19) (14. Qd2 $142 hxg4 15. hxg4) 14... hxg4 {[%emt 0:00:17]} 15. hxg4 {[%emt 0:00:04][%cal Og4g5] Black must now prevent g5!} d6 {[%emt 0:00:01] [#]} 16. g5 {[%emt 0:00:18][%mdl 512]} Bxg5 {[%emt 0:00:34]} 17. Nxg5 {[%emt 0:00:45]} (17. Rg1 $142 h6 18. Nxg5 hxg5 19. Bb5) 17... Qxg5 $16 {[%emt 0:01:21]} 18. Nf6+ {[%emt 0:00:00]} (18. Nxc7+ $2 {loses.} Kd8 19. Qd2 Qg4+ (19... Kxc7 20. exd6+ Kxd6 21. e5+ Kc7 22. Qxg5 $15) 20. Ke3 Kxc7 $19) ({Better is} 18. Kd3 $1 $14 Qg2 19. Qd2 (19. Nxc7+ $2 {is the wrong capture.} Kd8 $19) 19... Rg3+ 20. Ne3 Qxd2+ 21. Kxd2 dxe5 22. Bxf7+ Ke7 23. Nd5+ Kd7 24. Rg1 Rxg1 25. Rxg1) 18... Kf8 $11 {[%emt 0:01:27]} 19. Rg1 $36 {[%emt 0:00:02][%mdl 2048] White is more active. Really sharp!} Qxg1 {[%emt 0:02:16]} 20. Qxg1 {[%emt 0:00:00]} Rxg1 {[%emt 0:00:02]} 21. Rxg1 {[%emt 0:00:01]} Nxd4+ {[%emt 0:00:02]} 22. Kd3 {[%emt 0:00:01] Intending Rg8+ and mate.} dxe5 {[%emt 0:00:01]} 23. Rg8+ {[%emt 0:00:13]} Ke7 {[%emt 0:00:02]} 24. Nd5+ {[%emt 0:00:00]} Kd6 $2 {[%emt 0:00:16][%mdl 8192]} (24... Kd7 $11) 25. Rd8+ $18 {[%emt 0:00:13]} Kc5 $2 {[%emt 0:01:02]} (25... Ke6 26. Nxc7+ Ke7) 26. b4+ {[%emt 0:07:45] Weighted Error Value: White=0.38/Black=0.59.  Loses game:     	---       	Black=1      Mistake:       	White=3     	Black=2      OK:         	White=7     	Black=5      Best:        	White=2     	Black=4} 1-0

[Event "3rd Rio Open-Rapid 2024"]
[Site "Rio de Janeiro"]
[Date "2024.04.24"]
[Round "2.2"]
[White "Barros, Angelo Costa"]
[Black "Ribeiro, Matheus Mendes Domin"]
[Result "0-1"]
[ECO "C11"]
[WhiteElo "1825"]
[BlackElo "2228"]
[Annotator "TA"]
[PlyCount "58"]
[EventDate "2024.04.12"]
[EventType "swiss"]
[EventCountry "BRA"]
[SourceTitle "playchess.com"]
[Source "ChessBase"]
[SourceQuality "1"]
[TimeControl "600+5"]

{[%evp 15,58,0,10,0,0,-12,-3,-7,0,-126,-157,-132,-45,-66,0,-314,-99,-98,-104,-95,-75,-253,-250,-360,-315,-466,-387,-421,-418,-440,-433,-415,-369,-659,-652,-657,-687,-702,-697,-743,-734,-921,-902,-966,-802]} 1. e4 {[%emt 0:00:03]} e6 {[%emt 0:00:00]} 2. d4 {[%emt 0:00:07]} d5 {[%emt 0:00:01]} 3. Nc3 {[%emt 0:00:01]} Nf6 {[%emt 0:00:02]} 4. e5 {[%emt 0:00:01]} Nfd7 {[%emt 0:00:00]} 5. Nce2 {[%emt 0:00:01]} c5 {[%emt 0:00:02]} 6. c3 {[%emt 0:00:01]} Nc6 {[%emt 0:00:00]} 7. f4 {[%emt 0:00:06]} Be7 {[%emt 0:00:05]} 8. Nf3 {[%emt 0:00:01]} O-O {[%emt 0:00:02]} 9. a3 {[%emt 0:00:39]} f6 {[%emt 0:00:12]} 10. Be3 {[%emt 0:00:19]} fxe5 {[%emt 0:00:31]} 11. fxe5 {[%emt 0:00:03] The position is equal.} Qb6 {[%emt 0:00:02] And now ...cxd4 would win.} 12. b4 {[%emt 0:01:35]} (12. Qd2 $11) 12... cxb4 {[%emt 0:00:10][%cal Oc6e5] White must now prevent ...Ncxe5!} 13. Qd3 {[%emt 0:01:40] [#]} ({But not} 13. cxb4 Ndxe5 14. Nxe5 Nxe5 $19) 13... bxa3 {[%emt 0:00:51]} (13... Qa5 $1 $17 {Hoping for ...bxc3.} 14. h4 (14. Nf4 bxc3 15. Qc2 Rf5 $17) 14... bxc3 (14... bxa3 15. Ng5 $11)) 14. Nf4 {[%emt 0:00:59][%cal Oh2h4]} Na5 {[%emt 0:00:42]} (14... Qa5 $15 15. Be2 Nxd4 16. Qxd4 Nc5) 15. Qc2 $2 {[%emt 0:00:36][%mdl 8192]} (15. h4 $11) 15... Qb3 $2 {[%emt 0:01:11]} (15... Qb2 $19 16. Qd1 Nb3 (16... Qxc3+ $2 17. Bd2 $19)) 16. Bd3 $17 {[%emt 0:01:33]} Qxc2 {[%emt 0:00:02]} 17. Bxc2 {[%emt 0:00:02]} Nb6 {[%emt 0:00:07] aiming for ...Bd7.} 18. Nd3 $2 {[%emt 0:00:36] This move loses the game for White.} (18. h4 $17) 18... Bd7 $19 {[%emt 0:00:50]} 19. O-O {[%emt 0:00:48]} (19. Bc1 $142) 19... Rac8 {[%emt 0:00:19]} 20. Bd2 {[%emt 0:00:05]} (20. Nc5 $142) 20... Nac4 {[%emt 0:00:09]} 21. Be1 {[%emt 0:00:59]} Ne3 {[%emt 0:00:56]} 22. Rf2 {[%emt 0:00:05]} Nxc2 {[%emt 0:00:02]} 23. Rxc2 {[%emt 0:00:02]} Nc4 {[%emt 0:00:04]} 24. Bh4 $2 {[%emt 0:00:27] [#]} (24. Nc5 Bxc5 25. dxc5) 24... Rxf3 $1 {[%emt 0:00:09] Black is clearly winning.} 25. gxf3 {[%emt 0:00:18]} Bxh4 {[%emt 0:00:01]} 26. Nc5 {[%emt 0:00:09]} Rc7 {[%emt 0:00:52]} 27. Rb1 {[%emt 0:00:28]} b6 {[%emt 0:00:19]} 28. Na6 {[%emt 0:00:24]} Rc8 {[%emt 0:00:01]} 29. Nb4 {[%emt 0:00:01]} Be7 {[%emt 0:00:00] Weighted Error Value: White=0.93/Black=0.34.  Loses game:     	White=2     	---        Missed win:     	---       	Black=1      Mistake:       	White=4     	Black=2      OK:         	White=3     	Black=5      Best:        	---       	Black=1      Brilliant:      	---       	Black=1} 0-1

[Event "3rd Rio Open-Rapid 2024"]
[Site "Rio de Janeiro"]
[Date "2024.04.24"]
[Round "2.3"]
[White "Heubeck, Flavio"]
[Black "Librelato, Kathie Goulart"]
[Result "1-0"]
[ECO "D45"]
[WhiteElo "1809"]
[BlackElo "2165"]
[Annotator "TA"]
[PlyCount "80"]
[EventDate "2024.04.12"]
[EventType "swiss"]
[EventCountry "BRA"]
[SourceTitle "playchess.com"]
[Source "ChessBase"]
[SourceQuality "1"]
[TimeControl "600+5"]

{[%evp 16,80,0,0,0,-12,-16,-47,-40,-51,-36,-58,-25,-12,-18,-20,40,51,157,-423,-416,-509,-429,-516,-500,-692,-608,-599,-606,-596,-607,-639,-623,-644,-639,-634,-638,-725,-647,-646,-631,-711,-702,-687,-679,-1280,-1334,-1356,-1254,-3478,-3186,-29961,-12641,-6748,-6948,-29980,-29979,-29983,-29984,-29984,-29985,-29985,-29986,-29988,-29989,-29989,-29990]} 1. c4 {[%emt 0:00:01]} e6 {[%emt 0:00:02]} 2. Nc3 {[%emt 0:00:02]} d5 {[%emt 0:00:01]} 3. d4 {[%emt 0:00:03]} c6 {[%emt 0:00:05]} 4. e3 {[%emt 0:00:03]} Nf6 {[%emt 0:00:03]} 5. Nf3 {[%emt 0:00:08]} Nbd7 {[%emt 0:00:02]} 6. a3 {[%emt 0:00:06]} Bd6 {[%emt 0:00:15]} 7. Qc2 {[%emt 0:00:07]} O-O {[%emt 0:00:05]} 8. Be2 {[%emt 0:00:08]} Qe7 {[%emt 0:00:08]} 9. O-O {[%emt 0:00:11]} b6 {[%emt 0:00:08]} 10. Bd2 {[%emt 0:00:24]} Bb7 {[%emt 0:00:03]} 11. cxd5 {[%emt 0:00:10]} exd5 {[%emt 0:00:03] Black is slightly better.} 12. Rac1 {[%emt 0:00:12]} Ne4 {[%emt 0:00:17]} 13. Be1 {[%emt 0:00:14]} Rae8 {[%emt 0:00:32]} 14. Nxe4 {[%emt 0:00:12]} dxe4 {[%emt 0:00:03]} 15. Nd2 {[%emt 0:00:13]} f5 {[%emt 0:00:28]} ({Black should play} 15... c5 $11) 16. Nc4 $14 {[%emt 0:00:11]} Bb8 {[%emt 0:00:08] [#]} ({Better is} 16... Rf6 $14) 17. Bh5 $2 {[%emt 0:00:21] [#] This move loses the game for White.} (17. Na5 $1 $16 {[%cal Ra5b7]} bxa5 (17... Qd6 $2 18. g3 $18) 18. Qb3+ Kh8 19. Qxb7) 17... Qh4 $1 $19 {[%emt 0:00:29][%csl Gb8,LRh2,LRh5][%cal Rh4h2]} 18. Ne5 {[%emt 0:00:35]} (18. f4 Qxh5) 18... Nxe5 {[%emt 0:00:23]} 19. dxe5 {[%emt 0:00:08]} Qxh5 {[%emt 0:00:13]} 20. g3 {[%emt 0:00:30]} Bxe5 {[%emt 0:00:10]} 21. Bc3 {[%emt 0:00:12]} Bxc3 {[%emt 0:00:15]} 22. Qxc3 {[%emt 0:00:13]} Rd8 {[%emt 0:00:11]} 23. Rfe1 {[%emt 0:00:33]} Rd3 {[%emt 0:00:27]} 24. Qc4+ {[%emt 0:00:09]} Qf7 {[%emt 0:07:34]} 25. Qa4 {[%emt 0:00:17]} a5 {[%emt 0:00:00]} 26. Rc3 {[%emt 0:00:48]} Rxc3 {[%emt 0:00:00]} 27. bxc3 {[%emt 0:00:03]} Rd8 {[%emt 0:00:00] ...Qa2 is the strong threat.} 28. Rd1 {[%emt 0:00:46]} Rxd1+ {[%emt 0:00:00]} 29. Qxd1 {[%emt 0:00:03]} Qd5 {[%emt 0:00:00]} 30. Qd4 {[%emt 0:00:11]} Qxd4 {[%emt 0:00:00]} 31. exd4 {[%emt 0:00:08][%mdl 4096] Endgame. KB-KP} Kf7 {[%emt 0:00:00] White must now prevent ...Ke6.} 32. h4 {[%emt 0:00:16]} Ke6 {[%emt 0:00:00]} 33. Kf1 {[%emt 0:00:01]} Kd5 {[%emt 0:00:00] ( -> ...Kc4)} 34. Ke2 {[%emt 0:00:06]} Kc4 {[%emt 0:00:00]} 35. Ke3 {[%emt 0:00:07]} Kxc3 {[%emt 0:00:00] Black mates.} 36. h5 {[%emt 0:00:15]} b5 {[%emt 0:00:00]} 37. f3 {[%emt 0:00:16]} exf3 {[%emt 0:00:00]} 38. Kxf3 {[%emt 0:00:03]} c5+ {[%emt 0:00:00]} 39. Kf4 {[%emt 0:00:03]} cxd4 {[%emt 0:00:00]} 40. Kxf5 {[%emt 0:00:02]} d3 {[%emt 0:00:00][%mdl 32768] Weighted Error Value: White=0.71/Black=0.29 (precise) .  Loses game:     	White=1     	---        Mistake:       	---       	Black=2      Inaccurate:     	White=2     	Black=1      OK:         	White=4     	Black=3      Best:        	---       	Black=1      Strong:       	---       	Black=1     . Loss on time!?} 1-0